bitfinex/quotes_BTCUSD_20251219
["timestamp","ask_amount","ask_price","bid_price","bid_amount"]
[1766119213496,0.05504556,87160.0,87152.0,0.00576]
[1766119213676,0.06651871,87160.0,87152.0,0.00576]
[1766119213834,0.05504556,87160.0,87152.0,0.00576]
[1766119216059,0.06651871,87160.0,87152.0,0.00576]
[1766119216260,0.06651871,87160.0,87151.0,0.16068]
[1766119216261,0.01147433,87151.0,87147.0,0.00576]
[1766119216482,0.24096599,87151.0,87147.0,0.00576]
[1766119216673,0.01147446,87150.0,87147.0,0.00576]
[1766119216870,0.24095814,87153.0,87147.0,0.00576]
[1766119217069,0.0114742,87152.0,87147.0,0.00576]
[1766119217460,0.01147433,87151.0,87147.0,0.00576]
[1766119218012,0.01147446,87150.0,87147.0,0.00576]
[1766119218148,0.01147433,87151.0,87147.0,0.00576]
[1766119218348,0.01147446,87150.0,87147.0,0.00576]
[1766119218772,0.01147433,87151.0,87147.0,0.00576]
[1766119219838,0.24096132,87151.0,87133.0,0.16068]
[1766119219987,0.24096132,87151.0,87134.0,0.00576]
[1766119219988,0.67928241,87143.0,87134.0,0.00576]
[1766119220323,0.67928241,87144.0,87134.0,0.00576]
[1766119220582,0.01147512,87145.0,87134.0,0.00576]
[1766119220722,0.69075766,87144.0,87134.0,0.00576]
[1766119220922,0.24098573,87143.0,87135.0,0.00576]
[1766119221267,0.24098518,87144.0,87135.0,0.00010964]
[1766119221418,0.01147525,87144.0,87135.0,0.00010964]
[1766119221626,0.24097793,87145.0,87135.0,0.00010964]
[1766119222036,0.92026034,87145.0,87135.0,0.00010964]
[1766119222972,0.69075753,87145.0,87135.0,0.00010964]
[1766119224277,0.01147525,87144.0,87135.0,0.00010964]
[1766119224644,0.9202603,87145.0,87135.0,0.00010964]
[1766119224843,0.01147539,87143.0,87135.0,0.00010964]
[1766119225860,0.01147525,87144.0,87135.0,0.00010964]
[1766119226270,0.24098062,87144.0,87135.0,0.00010964]
[1766119226513,1.00979365,87145.0,87135.0,0.00010964]
[1766119227214,0.01147525,87144.0,87135.0,0.00010964]
[1766119227961,0.01147539,87143.0,87135.0,0.00010964]
[1766119228370,0.01147552,87142.0,87135.0,0.00010964]
[1766119228809,0.01147539,87143.0,87135.0,0.00010964]
[1766119229002,0.24098355,87143.0,87135.0,0.00010964]
[1766119229204,0.01147552,87142.0,87135.0,0.00010964]
[1766119229826,0.24098813,87142.0,87135.0,0.00010964]
[1766119230031,0.24099632,87139.0,87135.0,0.00010964]
[1766119230398,0.01147578,87140.0,87135.0,0.00010964]
[1766119231632,0.01147565,87141.0,87135.0,0.00010964]
[1766119232019,0.24098706,87142.0,87135.0,0.00010964]
[1766119232638,0.01147525,87144.0,87135.0,0.00010964]
[1766119232840,2.7e-06,87150.0,87138.0,0.14652]
[1766119233014,0.00576,87154.0,87144.0,0.14652]
[1766119233238,0.03448277,87159.0,87149.0,0.14652]
[1766119233434,0.05172,87168.0,87154.0,0.29162]
[1766119233734,0.05172,87168.0,87155.0,0.01376857]
[1766119233906,0.05172,87168.0,87150.0,0.00576]
[1766119233907,0.00576,87168.0,87150.0,0.00576]
[1766119234234,0.01147236,87166.0,87152.0,0.14652]
[1766119234363,0.01147249,87165.0,87152.0,0.14652]
[1766119234919,0.24091975,87166.0,87152.0,0.14652]
[1766119235120,0.01723209,87168.0,87152.0,0.14652]
[1766119235323,0.01147223,87167.0,87152.0,0.14652]
[1766119235520,0.01147236,87166.0,87152.0,0.14652]
[1766119236332,0.01147262,87164.0,87152.0,0.14652]
[1766119236692,0.24092384,87165.0,87152.0,0.14652]
[1766119236886,0.01147249,87165.0,87152.0,0.14652]
[1766119237231,0.01147262,87164.0,87152.0,0.14652]
[1766119237637,0.01723209,87168.0,87152.0,0.14652]
[1766119237797,0.24667413,87168.0,87152.0,0.14652]
[1766119237994,0.01723209,87168.0,87152.0,0.14652]
[1766119238219,0.00576,87168.0,87152.0,0.14652]
[1766119238414,0.00576,87168.0,87153.0,0.14652]
[1766119239021,0.00576,87168.0,87154.0,0.14652]
[1766119241057,0.01723209,87168.0,87154.0,0.14652]
[1766119241281,0.01147249,87165.0,87153.0,0.1451]
[1766119241608,0.01147262,87164.0,87153.0,0.1451]
[1766119242188,0.01147275,87163.0,87153.0,0.1451]
[1766119242508,0.01147288,87162.0,87153.0,0.1451]
[1766119242707,0.01147262,87164.0,87153.0,0.1451]
[1766119243009,0.01147288,87162.0,87153.0,0.1451]
[1766119243399,0.22946252,87161.0,87150.0,0.00576]
[1766119243577,0.001099,87150.0,87144.0,0.04596]
[1766119243779,0.01147354,87157.0,87145.0,0.00576]
[1766119244002,0.24094492,87157.0,87145.0,0.00576]
[1766119244160,0.01147407,87153.0,87146.0,0.00576]
[1766119244801,0.24094747,87156.0,87135.0,0.00010964]
[1766119244802,0.001014,87146.0,87145.0,0.00576]
[1766119245030,0.24096866,87149.0,87136.0,0.14652]
[1766119245172,0.01147486,87147.0,87137.0,0.00576]
[1766119245367,0.01147486,87147.0,87137.0,0.15228]
[1766119245680,0.24096978,87148.0,87137.0,0.15228]
[1766119245894,0.01340412,87147.0,87138.0,0.00576]
[1766119246291,0.01147486,87147.0,87138.0,0.00576]
[1766119246582,0.01147499,87146.0,87138.0,0.00576]
[1766119246782,0.01147486,87147.0,87138.0,0.00576]
[1766119246984,0.01147499,87146.0,87138.0,0.00576]
[1766119247227,0.02487898,87147.0,87138.0,0.00576]
[1766119247429,0.01147539,87143.0,87138.0,0.00576]
[1766119247602,0.01340412,87143.0,87138.0,0.00576]
[1766119247777,0.01340412,87143.0,87135.0,0.14662964]
[1766119247778,0.01340412,87143.0,87135.0,0.00010964]
[1766119248117,0.01340412,87144.0,87135.0,0.00010964]
[1766119248342,0.22950488,87145.0,87135.0,0.00010964]
[1766119248552,0.01147525,87144.0,87135.0,0.00010964]
[1766119248671,0.29602269,87146.0,87135.0,0.00010964]
[1766119248872,0.69075687,87150.0,87135.0,0.14662964]
[1766119249070,0.0114746,87149.0,87135.0,0.14662964]
[1766119249274,0.01340412,87148.0,87135.0,0.14662964]
[1766119249677,0.01340412,87148.0,87136.0,0.1451]
[1766119249899,0.01340412,87148.0,87135.0,0.00010964]
[1766119249900,0.00576,87152.0,87137.0,0.14652]
[1766119250116,0.67928241,87150.0,87148.0,8.5e-05]
[1766119250317,0.00576,87152.0,87148.0,8.5e-05]
[1766119250515,0.00576,87152.0,87140.0,0.14652]
[1766119250760,0.67928241,87150.0,87136.0,0.14652]
[1766119251475,0.00576,87152.0,87136.0,0.14652]
[1766119251670,0.00576,87152.0,87136.0,0.1451]
[1766119251825,0.00576,87152.0,87137.0,0.14652]
[1766119252929,0.0172342,87152.0,87137.0,0.14652]
[1766119253183,0.00576,87152.0,87137.0,0.14652]
[1766119253409,0.0172342,87152.0,87137.0,0.14652]
[1766119253615,0.00576,87152.0,87137.0,0.14652]
[1766119253770,0.0172342,87152.0,87137.0,0.14652]
[1766119254152,0.24096108,87151.0,87136.0,0.1451]
[1766119254494,0.01147446,87150.0,87135.0,0.00010964]
[1766119254817,0.05504556,87146.0,87135.0,0.00010964]
[1766119257458,0.06652055,87146.0,87135.0,0.00010964]
[1766119257678,0.24290901,87145.0,87135.0,0.00010964]
[1766119257887,0.01340412,87145.0,87135.0,0.00010964]
[1766119258083,0.01147525,87144.0,87135.0,0.00010964]
[1766119258282,0.01147552,87142.0,87135.0,0.00010964]
[1766119258729,0.2409834,87143.0,87135.0,0.00010964]
[1766119260172,0.01147539,87143.0,87135.0,0.00010964]
[1766119260685,0.67939618,87145.0,87116.0,0.01147894]
[1766119260896,0.000109,87135.0,87123.0,0.14652]
[1766119261130,0.000109,87135.0,87124.0,0.15228]
[1766119261340,0.69087196,87140.0,87124.0,0.15086]
[1766119261504,0.69087196,87140.0,87125.0,0.14652]
[1766119261859,0.00576,87147.0,87128.0,0.01147736]
[1766119262068,0.00576,87147.0,87140.0,8.5e-05]
[1766119262284,0.00576,87147.0,87133.0,0.00576]
[1766119262486,0.01723486,87147.0,87133.0,0.00576]
[1766119262686,0.01147499,87146.0,87133.0,0.00576]
[1766119262888,0.22961368,87145.0,87133.0,0.00576]
[1766119263248,0.00010959,87145.0,87133.0,0.00576]
[1766119263547,0.01158471,87145.0,87133.0,0.00576]
[1766119263747,0.00010959,87145.0,87133.0,0.00576]
[1766119264431,0.01158471,87145.0,87133.0,0.00576]
[1766119264622,0.01147525,87144.0,87133.0,0.00576]
[1766119264833,0.01147539,87143.0,87133.0,0.00576]
[1766119265060,0.01147591,87139.0,87133.0,0.00576]
[1766119265420,0.01147604,87138.0,87133.0,0.004746]
[1766119265582,0.24099722,87138.0,87133.0,0.004746]
[1766119265783,0.01147631,87136.0,87133.0,0.004746]
[1766119265988,0.01147618,87137.0,87133.0,0.004746]
[1766119266192,0.24099707,87138.0,87133.0,0.004746]
[1766119266439,0.01147618,87137.0,87133.0,0.004746]
[1766119267047,0.01340412,87136.0,87118.0,0.14719]
[1766119267253,0.02488043,87136.0,87119.0,0.15295]
[1766119267632,0.02488043,87136.0,87119.0,0.1616]
[1766119267839,0.01340412,87136.0,87119.0,0.1616]
[1766119268036,0.24676055,87137.0,87119.0,0.30879]
[1766119268270,0.00576,87137.0,87119.0,0.30879]
[1766119268989,0.01147631,87136.0,87119.0,0.30879]
[1766119269133,0.01147644,87135.0,87119.0,0.30879]
[1766119269315,0.00576,87137.0,87120.0,0.30303]
[1766119270676,0.69087064,87150.0,87137.0,0.001099]
[1766119270875,0.04596,87163.0,87143.0,0.01147539]
[1766119271020,0.05504556,87161.0,87145.0,0.30303]
[1766119271397,0.05504556,87161.0,87144.0,0.01723525]
[1766119271726,0.05504556,87161.0,87144.0,0.00576]
[1766119271969,0.05504556,87161.0,87145.0,0.30303]
[1766119272171,0.05504556,87161.0,87145.0,0.15584]
[1766119272330,0.05504556,87161.0,87145.0,0.14719]
[1766119272531,0.05504556,87161.0,87144.0,0.00576]
[1766119273353,0.32016594,87159.0,87144.0,0.1616]
[1766119273720,0.24094205,87158.0,87144.0,0.1616]
[1766119274206,0.24094467,87157.0,87144.0,0.1616]
[1766119274411,0.01147367,87156.0,87144.0,0.1616]
[1766119274955,0.01147381,87155.0,87144.0,0.1616]
[1766119275356,0.01147367,87156.0,87144.0,0.1616]
[1766119275752,0.24094791,87156.0,87144.0,0.1616]
[1766119276142,0.24095023,87155.0,87144.0,0.1616]
[1766119276358,0.02487806,87154.0,87144.0,0.00576]
[1766119276561,0.01147407,87153.0,87144.0,0.00576]
[1766119276805,0.02487832,87152.0,87144.0,0.00576]
[1766119277609,0.01147433,87151.0,87144.0,0.00576]
[1766119277851,0.24096266,87151.0,87144.0,0.00576]
[1766119277999,0.01147486,87147.0,87133.0,0.14719]
[1766119278209,0.06844968,87146.0,87133.0,0.14729959]
[1766119278423,0.07992467,87146.0,87134.0,0.00576]
[1766119278800,0.07992467,87146.0,87126.0,0.01147763]
[1766119278801,0.01147525,87144.0,87124.0,0.01147789]
[1766119278996,0.02487951,87143.0,87123.0,0.14719]
[1766119279313,0.01147565,87141.0,87124.0,0.00576]
[1766119279550,0.02487977,87141.0,87124.0,0.00576]
[1766119279851,0.02487977,87141.0,87125.0,0.14719]
[1766119279852,0.01340412,87141.0,87125.0,0.14719]
[1766119280055,0.01340412,87141.0,87126.0,0.14719]
[1766119280198,0.01147604,87138.0,87125.0,0.15584]
[1766119280401,0.69087262,87135.0,87123.0,0.00576]
[1766119280598,0.01147618,87137.0,87123.0,0.00576]
[1766119280824,0.00576,87137.0,87126.0,0.15584]
[1766119281044,0.00010957,87144.0,87137.0,0.156939]
[1766119281247,0.01147381,87155.0,87137.0,0.156939]
[1766119281248,0.00576,87147.0,87142.0,0.14719]
[1766119281449,8.382e-05,87147.0,87142.0,0.30303]
[1766119284866,8.382e-05,87147.0,87142.0,0.15584]
[1766119285287,8.382e-05,87147.0,87143.0,0.14719]
[1766119285635,8.382e-05,87147.0,87136.0,0.00576]
[1766119285844,8.382e-05,87147.0,87137.0,0.15584]
[1766119286029,8.382e-05,87147.0,87136.0,0.00576]
[1766119286030,8.382e-05,87147.0,87139.0,0.14719]
[1766119286379,8.382e-05,87147.0,87136.0,0.00576]
[1766119286591,0.05504556,87146.0,87136.0,0.00576]
[1766119286808,0.05504556,87146.0,87136.0,0.15295]
[1766119287589,8.382e-05,87147.0,87136.0,0.15295]
[1766119287795,0.05504556,87146.0,87136.0,0.1616]
[1766119288002,0.05504556,87146.0,87137.0,0.14719]
[1766119288197,0.06652055,87146.0,87137.0,0.14719]
[1766119288555,0.01147512,87145.0,87137.0,0.14719]
[1766119288788,0.01147525,87144.0,87137.0,0.14719]
[1766119289000,0.01340412,87144.0,87124.0,0.14719]
[1766119289201,0.07228055,87146.0,87126.0,0.14719]
[1766119289395,0.07228055,87146.0,87127.0,0.30303]
[1766119289605,0.06080556,87146.0,87130.0,0.14719]
[1766119289805,0.06080556,87146.0,87131.0,0.15295]
[1766119290360,0.07228055,87146.0,87131.0,0.15295]
[1766119290817,0.00576,87146.0,87132.0,0.15584]
[1766119290987,0.00576,87146.0,87133.0,0.15584]
[1766119292664,0.00576,87146.0,87133.0,0.30303]
[1766119296322,0.24097823,87145.0,87133.0,0.30303]
[1766119296747,0.01147512,87145.0,87133.0,0.30303]
[1766119297229,0.01147539,87143.0,87133.0,0.30303]
[1766119297569,0.24098046,87144.0,87133.0,0.30303]
[1766119297979,0.01147539,87143.0,87133.0,0.30303]
[1766119298180,0.01147565,87141.0,87133.0,0.30303]
[1766119298400,0.01147525,87144.0,87133.0,0.30303]
[1766119299118,0.01147525,87144.0,87133.0,0.15584]
[1766119299450,0.01147539,87143.0,87133.0,0.15584]
[1766119300345,0.01147552,87142.0,87133.0,0.15584]
[1766119300576,8.382e-05,87147.0,87142.0,0.001099]
[1766119300710,8.382e-05,87147.0,87127.0,0.01147749]
[1766119300711,8.382e-05,87147.0,87139.0,0.15368]
[1766119301107,8.382e-05,87147.0,87140.0,0.15805]
[1766119301320,8.2e-07,87147.0,87141.0,0.15368]
[1766119305468,0.00576,87155.0,87143.0,0.15805]
[1766119305632,0.01147433,87151.0,87127.0,0.01147749]
[1766119305839,0.01147446,87150.0,87138.0,0.15368]
[1766119306006,0.01147486,87147.0,87139.0,0.00576]
[1766119306211,0.22949696,87148.0,87139.0,0.005677]
[1766119306453,0.01147525,87144.0,87139.0,0.005677]
[1766119306652,0.01147512,87145.0,87139.0,0.005677]
[1766119306861,0.24097412,87147.0,87139.0,0.005677]
[1766119307199,0.01147486,87147.0,87134.0,0.15368]
[1766119307439,0.01147604,87138.0,87127.0,8.382e-05]
[1766119307632,0.22951575,87140.0,87127.0,8.382e-05]
[1766119307633,0.24101047,87134.0,87127.0,3.82e-06]
[1766119307768,0.0114771,87130.0,87124.0,3.82e-06]
[1766119307967,0.24101466,87132.0,87124.0,3.39e-06]
[1766119308181,0.01147697,87131.0,87124.0,3.39e-06]
[1766119308579,0.24101466,87132.0,87124.0,3.39e-06]
[1766119308778,0.01147683,87132.0,87124.0,3.39e-06]
[1766119309181,0.01147697,87131.0,87124.0,3.39e-06]
[1766119309588,0.01147683,87132.0,87124.0,3.39e-06]
[1766119309797,0.01147697,87131.0,87124.0,3.39e-06]
[1766119309997,0.06652305,87127.0,87124.0,3.39e-06]
[1766119310221,0.01340412,87126.0,87124.0,3.39e-06]
[1766119310754,0.01147881,87117.0,87103.0,0.06201372]
[1766119310890,0.26022006,87117.0,87102.0,0.00576]
[1766119311090,0.24105818,87116.0,87102.0,0.00586949]
[1766119311289,0.24681538,87117.0,87102.0,0.00586949]
[1766119311499,0.01147907,87115.0,87102.0,0.00586949]
[1766119311695,0.01340412,87115.0,87102.0,0.00586949]
[1766119312121,0.05504556,87112.0,87102.0,0.00586949]
[1766119313534,0.73505264,87112.0,87102.0,0.00586949]
[1766119313920,0.68000708,87112.0,87102.0,0.00586949]
[1766119315840,0.68576708,87112.0,87102.0,0.00586949]
[1766119316974,0.0114796,87111.0,87102.0,0.00586949]
[1766119317202,0.92683687,87112.0,87102.0,0.00586949]
[1766119317402,0.92683687,87112.0,87094.0,0.15805]
[1766119317403,0.01148039,87105.0,87091.0,0.00576]
[1766119317561,0.01148039,87105.0,87085.0,0.15368]
[1766119317562,0.01340412,87104.0,87085.0,0.15944]
[1766119317739,0.09080951,87109.0,87091.0,0.15368]
[1766119317950,0.00576,87108.0,87092.0,0.15368]
[1766119318158,0.00576,87108.0,87094.0,0.15368]
[1766119318364,0.00576,87108.0,87095.0,0.01148171]
[1766119318603,0.00010951,87109.0,87100.0,0.01148105]
[1766119318790,0.00576,87114.0,87104.0,0.15368]
[1766119319340,0.00576,87114.0,87105.0,0.15368]
[1766119319591,0.00576,87114.0,87101.0,0.01148092]
[1766119319791,0.00576,87114.0,87102.0,0.31173]
[1766119319992,0.00576,87114.0,87102.0,0.15368]
[1766119320142,0.00576,87114.0,87101.0,0.01148092]
[1766119320549,0.00576,87114.0,87102.0,0.15368]
[1766119320995,0.00576,87114.0,87102.0,0.16953079]
[1766119321199,0.00576,87114.0,87102.0,0.31173]
[1766119321394,0.01147868,87118.0,87096.0,0.31173]
[1766119321571,0.01147907,87115.0,87096.0,0.00010951]
[1766119321772,0.24681922,87116.0,87096.0,0.00010951]
[1766119321773,0.24681922,87116.0,87097.0,0.31173]
[1766119322010,0.00576,87116.0,87097.0,0.31173]
[1766119322330,0.01147907,87115.0,87097.0,0.15805]
[1766119322470,0.01147907,87115.0,87098.0,0.15368]
[1766119322671,0.00576,87116.0,87098.0,0.15368]
[1766119323017,0.00576,87116.0,87103.0,0.14825]
[1766119323171,0.00576,87116.0,87105.0,0.31896]
[1766119323995,0.01147697,87131.0,87109.0,0.14825]
[1766119324197,0.24678093,87130.0,87113.0,0.14825]
[1766119324513,0.69724418,87130.0,87115.0,0.14825]
[1766119324927,0.68576708,87130.0,87115.0,0.14825]
[1766119325140,0.69724418,87130.0,87115.0,0.14825]
[1766119325699,0.68576708,87130.0,87115.0,0.14825]
[1766119326485,0.00576,87130.0,87122.0,0.14825]
[1766119326888,0.03449249,87142.0,87129.0,0.01147723]
[1766119327112,0.00576,87147.0,87136.0,0.14825]
[1766119327716,0.73505264,87160.0,87136.0,0.14825]
[1766119327913,0.00576,87159.0,87144.0,0.14825]
[1766119328117,0.09646,87159.0,87144.0,0.14825]
[1766119328350,0.10793328,87159.0,87144.0,0.14825]
[1766119328542,0.00010968,87160.0,87148.0,0.17071]
[1766119328924,0.00010968,87160.0,87149.0,0.14825]
[1766119329093,0.001099,87148.0,87145.0,0.00576]
[1766119329470,0.0248774,87159.0,87145.0,0.00576]
[1766119330052,0.01340412,87159.0,87145.0,0.00576]
[1766119330421,0.00576,87168.0,87149.0,0.69148168]
[1766119330625,0.05504556,87164.0,87150.0,0.01147446]
[1766119330799,0.05504556,87164.0,87148.0,0.01147473]
[1766119330800,0.05504556,87164.0,87151.0,0.00576]
[1766119331092,0.00612537,87168.0,87152.0,0.31896]
[1766119331295,0.05504556,87165.0,87152.0,0.14825]
[1766119331500,0.05504556,87165.0,87151.0,0.00576]
[1766119331734,0.05504556,87165.0,87153.0,0.31896]
[1766119331908,0.01147394,87154.0,87128.0,0.00576]
[1766119332111,0.00576,87153.0,87138.0,0.14825]
[1766119332263,0.001099,87151.0,87141.0,0.17071]
[1766119332449,0.001099,87151.0,87145.0,0.14825]
[1766119332649,0.00576,87153.0,87145.0,0.14825]
[1766119334206,0.001099,87145.0,87141.0,0.00576]
[1766119334408,0.001099,87145.0,87137.0,0.00407953]
[1766119334795,0.01147473,87148.0,87137.0,0.00407953]
[1766119335224,0.22949276,87149.0,87137.0,0.00407953]
[1766119335537,0.01147473,87148.0,87137.0,0.00407953]
[1766119335748,0.01147499,87146.0,87137.0,0.00407953]
[1766119335888,0.01147499,87146.0,87132.0,0.00576]
[1766119335889,0.001099,87137.0,87132.0,0.00576]
[1766119336572,0.00576,87147.0,87116.0,0.22957631]
[1766119336798,0.00576,87147.0,87138.0,0.14825]
[1766119336970,0.00576,87152.0,87142.0,0.14825]
[1766119337125,0.00576,87152.0,87133.0,0.0114767]
[1766119337126,0.08691031,87168.0,87150.0,0.14825]
[1766119337328,0.08691031,87168.0,87149.0,0.0114746]
[1766119337329,0.09267031,87168.0,87155.0,0.14825]
[1766119337668,0.001099,87155.0,87154.0,0.17071]
[1766119337870,0.001099,87155.0,87151.0,0.00576]
[1766119338013,0.05504556,87165.0,87151.0,0.00576]
[1766119338216,0.08546241,87187.0,87159.0,0.17071]
[1766119338441,0.00576,87186.0,87169.0,0.17071]
[1766119338776,0.01146788,87200.0,87183.0,0.14825]
[1766119338955,0.22934724,87205.0,87184.0,0.01266499]
[1766119339131,0.01146762,87202.0,87179.0,0.01723065]
[1766119339334,0.24657624,87204.0,87184.0,0.14825]
[1766119339555,0.01146749,87203.0,87184.0,0.14825]
[1766119339869,0.01146762,87202.0,87185.0,0.14825]
[1766119340080,0.01146841,87196.0,87179.0,0.00576]
[1766119340316,0.61751561,87190.0,87170.0,0.14825]
[1766119340503,0.05541116,87204.0,87177.0,0.14825]
[1766119340637,0.01146775,87201.0,87180.0,0.31896]
[1766119340835,0.01146775,87201.0,87181.0,0.14825]
[1766119341293,0.01146815,87198.0,87181.0,0.14825]
[1766119341595,0.01146854,87195.0,87181.0,0.14825]
[1766119341798,0.01146946,87188.0,87174.0,0.14825]
[1766119341954,0.001099,87181.0,87178.0,0.00576]
[1766119342152,0.001099,87181.0,87174.0,0.00576]
[1766119342359,0.01146933,87189.0,87174.0,0.00576]
[1766119342559,0.67256117,87190.0,87174.0,0.00576]
[1766119342906,0.01146933,87189.0,87174.0,0.00576]
[1766119343088,0.01146986,87185.0,87174.0,0.00576]
[1766119343482,0.01146999,87184.0,87174.0,0.00576]
[1766119343808,0.01146999,87184.0,87153.0,0.14825]
[1766119343809,0.001099,87174.0,87153.0,0.14825]
[1766119344105,0.01147196,87169.0,87154.0,0.00576]
[1766119344267,0.24090882,87170.0,87154.0,0.00576]
[1766119344268,0.01147183,87170.0,87154.0,0.00576]
[1766119344484,0.01723183,87170.0,87154.0,0.00576]
[1766119344677,0.00576,87170.0,87154.0,0.00576]
[1766119345123,0.00612537,87170.0,87137.0,0.24099783]
[1766119345331,0.00612537,87170.0,87151.0,0.14825]
[1766119345538,0.00612537,87170.0,87153.0,0.17071]
[1766119345829,0.00612537,87170.0,87152.0,0.0114742]
[1766119345830,0.00612537,87170.0,87157.0,0.15972354]
[1766119346031,0.00612537,87170.0,87158.0,0.22946832]
[1766119346338,0.00612537,87170.0,87158.0,0.01147341]
[1766119347192,0.00612537,87170.0,87159.0,0.02524122]
[1766119347325,0.00612537,87170.0,87159.0,0.01376794]
[1766119347723,0.00612537,87170.0,87158.0,0.01147341]
[1766119348352,0.00612537,87170.0,87159.0,0.01147328]
[1766119348560,0.00612537,87170.0,87158.0,0.01147341]
[1766119348754,0.00612537,87170.0,87157.0,0.15972354]
[1766119348991,0.00612537,87170.0,87158.0,0.01147341]
[1766119349154,0.00612537,87170.0,87157.0,0.14825]
[1766119350353,0.00612537,87170.0,87156.0,0.00576]
[1766119350742,0.00612537,87170.0,87157.0,0.15972354]
[1766119351055,0.00612537,87170.0,87157.0,0.14825]
[1766119351242,0.00612537,87170.0,87156.0,0.00576]
[1766119351592,0.01147209,87168.0,87156.0,0.00576]
[1766119351772,0.001099,87156.0,87138.0,0.01147604]
[1766119351976,0.06080556,87157.0,87138.0,0.01147604]
[1766119352182,0.06080556,87157.0,87138.0,0.15972604]
[1766119352344,0.06080556,87157.0,87139.0,0.01147591]
[1766119352552,0.06080556,87157.0,87139.0,0.15972591]
[1766119352811,0.06080556,87157.0,87140.0,0.01147578]
[1766119353011,0.00576,87157.0,87143.0,0.15797]
[1766119353215,0.00576,87157.0,87148.0,0.15797]
[1766119353363,0.12518218,87169.0,87150.0,0.01147446]
[1766119353568,0.05172,87168.0,87152.0,0.15797]
[1766119357487,0.05172,87168.0,87152.0,0.32772]
[1766119357693,0.05172,87168.0,87153.0,0.15797]
[1766119358227,0.00036537,87170.0,87153.0,0.15797]
[1766119358395,0.00576,87169.0,87155.0,0.15797]
[1766119358950,0.00576,87169.0,87154.0,0.16975]
[1766119360132,0.01723196,87169.0,87154.0,0.16975]
[1766119360643,0.01723196,87169.0,87151.0,0.16373]
[1766119360846,0.00576,87169.0,87151.0,0.16373]
[1766119361200,0.01723196,87169.0,87151.0,0.16373]
[1766119361656,0.01147223,87167.0,87151.0,0.16373]
[1766119361803,0.01147209,87168.0,87151.0,0.16373]
[1766119362009,0.01723196,87169.0,87151.0,0.16373]
[1766119362646,0.01147209,87168.0,87151.0,0.16373]
[1766119363955,0.24667227,87169.0,87151.0,0.16373]
[1766119364225,0.01147288,87162.0,87147.0,0.15797]
[1766119364509,0.00576,87161.0,87147.0,0.15797]
[1766119366255,0.61751561,87160.0,87146.0,0.00576]
[1766119367966,0.0114742,87152.0,87134.0,0.32772]
[1766119368167,0.0114742,87152.0,87128.0,0.01147736]
[1766119368168,0.001099,87146.0,87128.0,0.33172224]
[1766119368372,0.001099,87146.0,87129.0,0.16373]
[1766119368570,0.01147446,87150.0,87129.0,0.16373]
[1766119368792,0.22949465,87148.0,87129.0,0.16373]
[1766119368993,0.22949465,87148.0,87117.0,0.16944881]
[1766119368994,0.01147604,87138.0,87117.0,0.16944881]
[1766119369193,0.00576,87137.0,87121.0,0.00576]
[1766119369402,0.00576,87137.0,87117.0,0.15797]
[1766119369403,0.61751561,87131.0,87117.0,0.15797]
[1766119369604,0.00576,87130.0,87117.0,0.15797]
[1766119370166,0.00576,87130.0,87117.0,0.15807968]
[1766119372107,0.00576,87130.0,87117.0,0.16955849]
[1766119372252,0.00576,87130.0,87117.0,0.15807968]
[1766119373799,0.05504556,87128.0,87117.0,0.00010968]
[1766119373946,0.000109,87117.0,87107.0,0.16975]
[1766119374159,0.000109,87117.0,87099.0,0.10218118]
[1766119374160,0.000109,87117.0,87105.0,0.00576]
[1766119374364,0.01147842,87120.0,87105.0,0.00586951]
[1766119374566,0.01147868,87118.0,87105.0,0.00586951]
[1766119374766,0.00576,87121.0,87105.0,0.00586951]
[1766119374936,0.01723828,87121.0,87105.0,0.00586951]
[1766119375139,0.01147881,87117.0,87105.0,0.00586951]
[1766119375344,0.01147842,87120.0,87105.0,0.00586951]
[1766119375743,0.01723828,87121.0,87105.0,0.00586951]
[1766119375964,0.01147842,87120.0,87105.0,0.00586951]
[1766119376498,0.01147842,87120.0,87101.0,0.24867]
[1766119376499,0.001099,87105.0,87101.0,0.00576]
[1766119376845,0.05504556,87114.0,87101.0,0.00576]
[1766119377047,0.24108865,87105.0,87085.0,0.16975]
[1766119377247,0.00576,87105.0,87086.0,0.00576]
[1766119377490,0.01148066,87103.0,87086.0,0.00576]
[1766119377959,0.01724039,87105.0,87086.0,0.00576]
[1766119377960,0.05504556,87100.0,87086.0,0.00576]
[1766119378159,0.05504556,87100.0,87086.0,0.09646]
[1766119378357,0.05504556,87100.0,87086.0,0.00576]
[1766119378788,0.05504556,87100.0,87077.0,0.01148408]
[1766119378789,0.001099,87086.0,87077.0,0.15797]
[1766119378959,0.00576,87092.0,87077.0,0.15797]
[1766119379398,0.01148224,87091.0,87077.0,0.15797]
[1766119379780,0.01148237,87090.0,87077.0,0.15797]
[1766119379900,0.01148224,87091.0,87077.0,0.15797]
[1766119380101,0.001099,87077.0,87064.0,0.0114858]
[1766119380353,0.001099,87077.0,87065.0,0.17521567]
[1766119380560,0.001099,87077.0,87068.0,0.16975]
[1766119380861,0.00576,87084.0,87068.0,0.24118975]
[1766119381088,0.00576,87084.0,87070.0,0.01148501]
[1766119381617,0.00576,87084.0,87072.0,0.16975]
[1766119381857,0.00576,87084.0,87074.0,0.16975]
[1766119382066,0.3603908,87100.0,87076.0,0.15797]
[1766119382268,0.01148197,87093.0,87077.0,0.16975]
[1766119382468,0.00576,87092.0,87078.0,0.15797]
[1766119382648,0.01724211,87092.0,87078.0,0.15797]
[1766119383163,0.00576,87092.0,87078.0,0.15797]
[1766119383360,0.01724211,87092.0,87078.0,0.15797]
[1766119383890,0.00576,87092.0,87078.0,0.15797]
[1766119384232,0.00576,87092.0,87078.0,0.32993]
[1766119384432,0.00576,87092.0,87085.0,0.00031508]
[1766119384633,0.00576,87092.0,87079.0,0.15727]
[1766119385063,0.00576,87092.0,87079.0,0.32923]
[1766119385280,0.00576,87092.0,87080.0,0.15727]
[1766119386265,0.24110913,87098.0,87083.0,0.15727]
[1766119386266,0.00576,87093.0,87083.0,0.15727]
[1766119386470,0.00576,87093.0,87084.0,0.32923]
[1766119387253,0.00576,87094.0,87086.0,0.17196]
[1766119387455,0.00576,87094.0,87081.0,0.01148356]
[1766119387910,0.00576,87099.0,87082.0,0.01378011]
[1766119388323,0.06080556,87099.0,87082.0,0.01378011]
[1766119388544,0.06080556,87099.0,87083.0,0.32923]
[1766119388745,0.06080556,87099.0,87085.0,0.32923]